[Event "22nd ECCC Women 2017"]
[Site "Antalya"]
[Date "2017.10.14"]
[Round "7"]
[White "Brusilovski, Lena"]
[Black "Voit, Daria"]
[Result "0-1"]
[ECO "B98"]
[WhiteElo "1881"]
[BlackElo "2387"]
[Annotator "NA"]
[PlyCount "56"]
[EventType "team-tourn"]
[EventCountry "TUR"]
[SourceTitle "playchess.com"]
[Source "ChessBase"]
[SourceQuality "1"]
[WhiteTeam "Beer Sheva"]
[BlackTeam "Legacy Square Capital"]
[TimeControl "40/5400+30:1800+30"]

1. e4 {[%emt 0:00:30]} c5 {[%emt 0:01:00]} 2. Nf3 {[%emt 0:01:30]} d6 {[%emt 0:00:30]} 3. d4 {[%emt 0:01:30]} cxd4 {[%emt 0:00:00]} 4. Nxd4 {[%emt 0:00:30]} Nf6 {[%emt 0:00:00]} 5. Nc3 {[%emt 0:01:30]} a6 {[%emt 0:00:30]} 6. Bg5 {[%emt 0:03:30]} e6 {[%emt 0:01:30]} 7. f4 {[%emt 0:01:30]} Be7 {[%emt 0:00:30]} 8. Qf3 {[%emt 0:02:30]} Nbd7 {[%emt 0:00:30]} 9. g4 {[%emt 0:02:30]} h6 {[%emt 0:04:30]} 10. Bxf6 {[%emt 0:01:30]} Bxf6 {[%emt 0:02:30]} 11. O-O-O {[%emt 0:02:30]} g5 {[%emt 0:03:30]} 12. f5 {[%emt 0:02:30]} Ne5 {[%emt 0:03:30]} 13. Qg3 {[%emt 0:02:30]} Bd7 {[%emt 0:04:30]} 14. Be2 {[%emt 0:03:30]} b5 {[%emt 0:02:30]} 15. fxe6 {[%emt 0:04:30]} fxe6 {[%emt 0:00:30]} 16. Rhf1 {[%emt 0:01:30]} O-O {[%emt 0:01:30]} 17. Nb1 {[%emt 0:11:30]} Rc8 {[%emt 0:09:30]} 18. Qb3 {[%emt 0:02:30]} Nc4 {[%emt 0:03:30]} 19. Bxc4 {[%emt 0:04:30]} Rxc4 {[%emt 0:01:30]} 20. Nf3 {[%emt 0:02:30]} Rxe4 {[%emt 0:19:30]} 21. Rxd6 {[%emt 0:02:30]} Be5 {[%emt 0:00:30]} 22. Qd3 {[%emt 0:04:30]} Bxd6 {[%emt 0:02:30]} 23. Qxe4 {[%emt 0:00:30]} Bf4+ {[%emt 0:00:30]} 24. Nbd2 {[%emt 0:01:30]} Qf6 {[%emt 0:01:30]} 25. Kb1 {[%emt 0:00:30]} e5 {[%emt 0:07:30]} 26. h3 {[%emt 0:01:30]} Bxd2 {[%emt 0:05:30]} 27. Qd5+ {[%emt 0:01:30]} Be6 {[%emt 0:01:30]} 28. Qxd2 {[%emt 0:01:30]} e4 {[%emt 0:00:00]} 0-1

[Event "22nd ECCC Women 2017"]
[Site "Antalya"]
[Date "2017.10.14"]
[Round "7"]
[White "Celik, Eda"]
[Black "Isgandarova, Khayala"]
[Result "0-1"]
[ECO "B16"]
[WhiteElo "1880"]
[BlackElo "2242"]
[Annotator "NA"]
[PlyCount "72"]
[EventType "team-tourn"]
[EventCountry "TUR"]
[SourceTitle "playchess.com"]
[Source "ChessBase"]
[SourceQuality "1"]
[WhiteTeam "Aegean"]
[BlackTeam "Anatolia"]
[TimeControl "40/5400+30:1800+30"]

1. e4 {[%emt 0:00:30]} c6 {[%emt 0:01:00]} 2. d4 {[%emt 0:00:30]} d5 {[%emt 0:00:00]} 3. Nc3 {[%emt 0:00:00]} dxe4 {[%emt 0:00:00]} 4. Nxe4 {[%emt 0:00:00]} Nf6 {[%emt 0:00:00]} 5. Nxf6+ {[%emt 0:00:00]} gxf6 {[%emt 0:00:00]} 6. c3 {[%emt 0:00:00]} Bf5 {[%emt 0:00:30]} 7. Nf3 {[%emt 0:01:30]} Qc7 {[%emt 0:00:30]} 8. g3 {[%emt 0:02:30]} Nd7 {[%emt 0:01:30]} 9. Bg2 {[%emt 0:02:30]} O-O-O {[%emt 0:02:30]} 10. Nh4 {[%emt 0:01:30]} Bg6 {[%emt 0:03:30]} 11. Nxg6 {[%emt 0:00:30]} hxg6 {[%emt 0:00:30]} 12. Be3 {[%emt 0:12:30]} Nb6 {[%emt 0:03:30]} 13. Qe2 {[%emt 0:04:30]} e6 {[%emt 0:08:30]} 14. O-O {[%emt 0:08:30]} Nd5 {[%emt 0:06:30]} 15. c4 {[%emt 0:13:30]} Nxe3 {[%emt 0:01:30]} 16. Qxe3 {[%emt 0:00:30]} c5 {[%emt 0:06:30]} 17. d5 {[%emt 0:03:30]} exd5 {[%emt 0:06:30]} 18. Bxd5 {[%emt 0:02:30]} Bd6 {[%emt 0:00:30]} 19. b4 {[%emt 0:22:30]} Rh5 {[%emt 0:08:30]} 20. b5 {[%emt 0:07:43]} Rdh8 {[%emt 0:02:30]} 21. h4 {[%emt 0:00:49]} g5 {[%emt 0:01:30]} 22. Bf3 {[%emt 0:04:31]} R5h6 {[%emt 0:00:30]} 23. Bg4+ {[%emt 0:00:35]} Kb8 {[%emt 0:00:30]} 24. Rae1 {[%emt 0:07:29]} Be5 {[%emt 0:06:30]} 25. hxg5 {[%emt 0:00:54]} fxg5 {[%emt 0:03:30]} 26. Qxe5 {[%emt 0:00:30]} Rh1+ {[%emt 0:00:30]} 27. Kg2 {[%emt 0:00:30]} R8h2+ {[%emt 0:00:30]} 28. Kf3 {[%emt 0:02:00]} Qxe5 {[%emt 0:03:30]} 29. Rxe5 {[%emt 0:00:02]} Rxf1 {[%emt 0:00:00]} 30. Rxc5 {[%emt 0:01:21]} Rhxf2+ {[%emt 0:01:00]} 31. Ke3 {[%emt 0:00:57]} f5 {[%emt 0:01:30]} 32. Be2 {[%emt 0:00:35]} f4+ {[%emt 0:00:30]} 33. gxf4 {[%emt 0:00:04]} gxf4+ {[%emt 0:00:00]} 34. Kd3 {[%emt 0:00:30]} Re1 {[%emt 0:00:00]} 35. Bg4 {[%emt 0:00:47]} Re3+ {[%emt 0:00:00]} 36. Kd4 {[%emt 0:00:26]} Rd2# {[%emt 0:00:00]} 0-1